[Event "3rd Gujarat GM Open 2022"]
[Site "Ahmedabad"]
[Date "2022.04.06"]
[Round "9.2"]
[White "Stany, G.A."]
[Black "Nigmatov, Ortik"]
[Result "0-1"]
[ECO "C78"]
[WhiteElo "2517"]
[BlackElo "2445"]
[Annotator "TA"]
[PlyCount "74"]
[EventDate "2022.03.31"]
[EventType "swiss"]
[EventCountry "IND"]
[SourceTitle "playchess.com"]
[Source "ChessBase"]
[SourceQuality "1"]
[TimeControl "5400+30"]

{[%evp 25,74,-22,-22,-27,0,-14,-23,-29,-28,-26,-27,-33,-24,-31,-27,-34,-28,-107,-27,-159,-154,-272,-265,-375,-378,-381,-366,-620,-607,-585,-557,-539,-545,-527,-519,-679,-678,-670,-663,-675,-672,-661,-649,-657,-686,-679,-662,-699,-626,-810,-781]} 1. e4 {[%emt 0:00:08]} e5 {[%emt 0:03:31]} 2. Nf3 {[%emt 0:00:04]} Nc6 {[%emt 0:00:05]} 3. Bb5 {[%emt 0:00:03]} a6 {[%emt 0:00:08]} 4. Ba4 {[%emt 0:00:04]} Nf6 {[%emt 0:00:03]} 5. O-O {[%emt 0:00:05]} Bc5 {[%emt 0:00:07]} 6. c3 {[%emt 0:00:23]} b5 {[%emt 0:00:05]} 7. Bb3 {[%emt 0:00:12]} d6 {[%emt 0:00:04]} 8. d4 {[%emt 0:01:09]} Bb6 {[%emt 0:00:04]} 9. Re1 {[%emt 0:01:18]} Bg4 {[%emt 0:00:18]} 10. Be3 {[%emt 0:25:31]} Bxf3 {[%emt 0:12:26]} 11. gxf3 {[%emt 0:01:42]} Na5 {[%emt 0:05:00]} 12. Kh1 {[%emt 0:14:06]} Nh5 {[%emt 0:09:01]} 13. Rg1 {[%emt 0:01:46]} Nxb3 {[%emt 0:02:24]} (13... O-O {is interesting.} 14. a4 Nxb3 15. Qxb3 Rb8) 14. axb3 {[%emt 0:00:12]} g6 {[%emt 0:04:09]} 15. c4 {[%emt 0:07:16]} exd4 {[%emt 0:13:37]} 16. Bxd4 {[%emt 0:00:13]} Bxd4 {[%emt 0:00:05]} 17. Qxd4 {[%emt 0:00:05]} O-O {[%emt 0:00:09]} 18. cxb5 {[%emt 0:08:46]} axb5 {[%emt 0:00:20]} 19. Rxa8 {[%emt 0:00:04]} Qxa8 {[%emt 0:00:02]} 20. Nc3 {[%emt 0:00:05]} Qe8 {[%emt 0:11:23]} 21. Rg5 {[%emt 0:09:57]} (21. b4 $11 {remains equal.}) 21... h6 {[%emt 0:02:24]} ({Black should play} 21... Qd8 $17 22. Rg1 Qd7) 22. Rxb5 {[%emt 0:01:25]} (22. Rg1 $1 $11) 22... Qe6 $1 $17 {[%emt 0:01:30]} 23. e5 {[%emt 0:10:23]} (23. Ne2 $17 Qh3 24. Ng1) 23... Ra8 $1 $19 {[%emt 0:04:03]} ({Not} 23... Qh3 24. Qg4 Qf1+ 25. Qg1 $15) 24. Qg4 {[%emt 0:02:16] [#]} (24. Ne2 {was called for.} Qh3 25. Ng1) 24... Ra1+ $1 $19 {[%emt 0:00:15]} 25. Kg2 {[%emt 0:00:03]} dxe5 {[%emt 0:00:10]} 26. Nd5 $2 {[%emt 0:03:25]} (26. Ne2 Re1 27. Qxe6 fxe6 28. Rxe5 Nf4+ 29. Nxf4 Rxe5 30. b4) 26... c6 $19 {[%emt 0:09:00]} 27. Rb8+ {[%emt 0:00:06]} Kh7 {[%emt 0:01:41]} 28. Qxe6 {[%emt 0:04:19]} fxe6 {[%emt 0:00:10]} 29. Rb7+ {[%emt 0:00:02]} Kh8 {[%emt 0:00:06]} 30. Rb8+ {[%emt 0:00:04]} Kg7 {[%emt 0:00:03]} 31. Rb7+ {[%emt 0:00:04]} Kf8 {[%emt 0:00:05]} 32. Rb8+ {[%emt 0:00:08] [#]} Kf7 $1 {[%emt 0:00:04]} 33. Rb7+ {[%emt 0:00:03]} Ke8 {[%emt 0:00:05]} 34. Nc7+ {[%emt 0:01:29]} Kd7 {[%emt 0:00:05]} 35. Nb5+ {[%emt 0:00:47]} Kd8 {[%emt 0:00:04]} 36. Rb8+ {[%emt 0:00:20]} Ke7 {[%emt 0:00:10]} 37. Rb7+ {[%emt 0:00:09]} Kf6 {[%emt 0:00:08]} 0-1

[Event "3rd Gujarat GM Open 2022"]
[Site "Ahmedabad"]
[Date "2022.04.06"]
[Round "9.3"]
[White "Harsha Bharathakoti"]
[Black "Abdisalimov, Abdimalik"]
[Result "1/2-1/2"]
[ECO "D47"]
[WhiteElo "2499"]
[BlackElo "2435"]
[Annotator "TA"]
[PlyCount "94"]
[EventDate "2022.03.31"]
[EventType "swiss"]
[EventCountry "IND"]
[SourceTitle "playchess.com"]
[Source "ChessBase"]
[SourceQuality "1"]
[TimeControl "5400+30"]

{[%evp 47,94,-79,0,0,0,-6,0,-8,0,0,34,4,12,0,0,0,0,0,0,0,0,0,0,0,0,0,0,0,0,0,0,0,0,0,0,0,0,0,0,0,0,0,0,0,0,0,0,0,0]} 1. c4 {[%emt 0:00:27]} e6 {[%emt 0:03:26]} 2. Nf3 {[%emt 0:01:55]} d5 {[%emt 0:00:16]} 3. d4 {[%emt 0:01:34]} Nf6 {[%emt 0:00:06]} 4. Nc3 {[%emt 0:00:19]} dxc4 {[%emt 0:00:18]} 5. e3 {[%emt 0:03:47]} a6 {[%emt 0:00:18]} 6. Bxc4 {[%emt 0:04:26]} b5 {[%emt 0:00:07]} 7. Be2 {[%emt 0:00:17]} Bb7 {[%emt 0:01:00]} 8. O-O {[%emt 0:00:46]} Nbd7 {[%emt 0:00:07]} 9. a4 {[%emt 0:16:57]} b4 {[%emt 0:00:20]} 10. Nb1 {[%emt 0:00:05]} c5 {[%emt 0:00:11]} 11. Nbd2 {[%emt 0:00:10]} Be7 {[%emt 0:04:21]} 12. Nc4 {[%emt 0:04:42]} O-O {[%emt 0:00:35]} 13. Bd2 {[%emt 0:00:57]} Rc8 {[%emt 0:02:30]} 14. dxc5 {[%emt 0:04:17]} a5 {[%emt 0:02:20]} 15. c6 {[%emt 0:04:07]} Bxc6 {[%emt 0:03:13]} 16. Nd4 {[%emt 0:00:06]} Bd5 {[%emt 0:02:08]} 17. Rc1 {[%emt 0:00:26]} Ne4 {[%emt 0:08:16]} 18. Be1 {[%emt 0:09:36]} Bf6 {[%emt 0:00:34]} 19. f3 {[%emt 0:01:28]} Bxc4 {[%emt 0:01:57]} 20. Rxc4 {[%emt 0:03:54]} Nec5 {[%emt 0:01:39]} 21. Rc2 {[%emt 0:09:45]} Nb6 {[%emt 0:08:51]} 22. Rd2 {[%emt 0:02:09]} Qd5 {[%emt 0:13:00]} 23. Bb5 {[%emt 0:07:48]} Bxd4 {[%emt 0:04:09]} 24. Rxd4 {[%emt 0:00:06]} (24. exd4 $11 {remains equal.}) 24... Qb3 {[%emt 0:02:27]} (24... Qa2 $17 25. Rf2 e5) 25. Qxb3 $11 {[%emt 0:03:43]} Nxb3 {[%emt 0:00:06]} 26. Rd1 {[%emt 0:00:59]} Nc4 {[%emt 0:01:53]} 27. Rf2 {[%emt 0:07:01]} Nb6 {[%emt 0:09:17]} (27... Nxe3 {is interesting.} 28. Rd3 Nc2 29. Rxc2 Rxc2 30. Rxb3 Rd8) 28. Re2 {[%emt 0:01:55]} Nc5 {[%emt 0:00:24]} 29. Bg3 {[%emt 0:04:16]} f6 {[%emt 0:01:23]} 30. e4 {[%emt 0:04:42]} Rfd8 {[%emt 0:07:31]} 31. Rxd8+ {[%emt 0:00:30]} Rxd8 {[%emt 0:00:01]} 32. Bc7 {[%emt 0:00:49]} Rd1+ {[%emt 0:00:02]} 33. Kf2 {[%emt 0:00:03]} Nbxa4 {[%emt 0:00:09]} 34. Bxa5 {[%emt 0:00:20]} Rb1 $1 {[%emt 0:01:05]} 35. Bxb4 {[%emt 0:01:05]} Nxb2 {[%emt 0:00:09]} 36. Bxc5 {[%emt 0:00:59]} Nd1+ {[%emt 0:00:04]} 37. Kg3 {[%emt 0:00:10]} Rxb5 {[%emt 0:00:03]} 38. Bd4 {[%emt 0:01:07]} e5 {[%emt 0:00:05]} 39. Rd2 {[%emt 0:01:34]} Rb1 {[%emt 0:00:01]} 40. Bc5 {[%emt 0:00:20]} Rc1 {[%emt 0:00:13]} 41. Bf2 {[%emt 0:00:18]} h5 {[%emt 0:00:32]} 42. h4 {[%emt 0:00:09]} Kh7 {[%emt 0:00:46]} 43. Bb6 {[%emt 0:00:27]} Nc3 {[%emt 0:00:21]} 44. Be3 {[%emt 0:00:27]} Nd1 {[%emt 0:01:07]} 45. Bb6 {[%emt 0:00:05]} Nc3 {[%emt 0:00:25]} 46. Be3 {[%emt 0:00:05]} Nd1 {[%emt 0:00:05]} 47. Bb6 {[%emt 0:00:03]} Nc3 {[%emt 0:00:04]} 1/2-1/2

[Event "3rd Gujarat GM Open 2022"]
[Site "Ahmedabad"]
[Date "2022.04.06"]
[Round "9.4"]
[White "Mehar, Chinna Reddy C.H."]
[Black "Venkatesh, M.R."]
[Result "1/2-1/2"]
[ECO "A49"]
[WhiteElo "2422"]
[BlackElo "2493"]
[Annotator "TA"]
[PlyCount "101"]
[EventDate "2022.03.31"]
[EventType "swiss"]
[EventCountry "IND"]
[SourceTitle "playchess.com"]
[Source "ChessBase"]
[SourceQuality "1"]
[TimeControl "5400+30"]

{[%evp 62,101,-118,-117,-22,-61,-61,-61,0,-6,0,-116,-124,-122,-119,-126,-127,-146,-146,-250,-226,-195,-134,-185,-112,-133,-8,-8,-8,-10,0,0,0,-8,-8,-10,0,-50,-10,-183,0,-252]} 1. d4 {[%emt 1:31:00]} Nf6 {[%emt 1:31:00]} 2. Nf3 {[%emt 0:00:30]} g6 {[%emt 0:00:30]} 3. g3 {[%emt 0:00:30]} Bg7 {[%emt 0:00:30]} 4. Bg2 {[%emt 0:00:30]} c5 {[%emt 0:00:30]} 5. d5 {[%emt 0:00:30]} O-O {[%emt 0:00:30]} 6. a4 {[%emt 0:00:30]} e6 {[%emt 0:00:30]} 7. Nc3 {[%emt 0:00:30]} exd5 {[%emt 0:00:30]} 8. Nxd5 {[%emt 0:00:30]} Nxd5 {[%emt 0:00:30]} 9. Qxd5 {[%emt 0:00:30]} d6 {[%emt 0:00:30]} 10. O-O {[%emt 0:00:30]} Nc6 {[%emt 0:00:30]} 11. Bf4 {[%emt 0:00:30]} Be6 {[%emt 0:00:30]} 12. Qxd6 {[%emt 0:00:30]} Qb6 {[%emt 0:00:30]} 13. Be3 {[%emt 0:00:30]} Rac8 {[%emt 0:00:30]} 14. Qxc5 Qxb2 15. Rab1 Qa2 16. Qg5 b6 17. Qh4 Qc4 18. Qxc4 Bxc4 19. Nd2 Bxe2 20. Rfe1 Bg4 21. c4 Ne5 22. Bf1 Rfd8 23. Rb3 Be6 24. Bg5 Rd4 25. Nf3 Nxf3+ 26. Rxf3 h6 27. Bf6 Bxf6 28. Rxf6 Kg7 29. Rf3 Rc5 30. Rb3 Ra5 31. Ra1 Rd2 32. Rb5 Ra6 (32... Rc2 $17 33. Rxa5 bxa5) 33. Rbb1 Bf5 $1 34. Rb3 Be6 (34... Bd7 $15) 35. Rbb1 $1 $11 Ra5 ({Black should try} 35... Rd4 $11) 36. Rb5 $17 {[#]} Rc2 $1 37. Rxa5 bxa5 38. Rb1 Bxc4 39. Bxc4 Rxc4 40. Rb7 (40. Ra1 $17) 40... Rxa4 41. Rxa7 Kf6 (41... h5 $19 42. Kg2 Ra3) 42. Kg2 $17 Ra3 (42... Ra1 $19 {And now ...a4 would win.} 43. Ra6+ Ke5) 43. g4 $17 h5 (43... g5 $17 44. Ra6+ Kg7) 44. gxh5 $11 gxh5 45. h4 Kg6 46. f3 Ra1 47. Ra6+ f6 48. Ra8 a4 49. Ra5 (49. Kg3 $11) 49... Ra3 (49... a3 $5 {[%cal Ra3a2]} 50. Kg3 a2 $17) 50. Kh2 $2 (50. Kg3 $11) 50... Kf7 $2 (50... Rxf3 $19 51. Rxa4 Kf5) 51. Rxh5 $2 {[%mdl 8192]} (51. Kg3 $11) 1/2-1/2

[Event "3rd Gujarat GM Open 2022"]
[Site "Ahmedabad"]
[Date "2022.04.06"]
[Round "9.5"]
[White "Krishna C R G"]
[Black "Anuj Shrivatri"]
[Result "0-1"]
[ECO "D00"]
[WhiteElo "2466"]
[BlackElo "2350"]
[Annotator "TA"]
[PlyCount "94"]
[EventDate "2022.03.31"]
[EventType "swiss"]
[EventCountry "IND"]
[SourceTitle "playchess.com"]
[Source "ChessBase"]
[SourceQuality "1"]
[TimeControl "5400+30"]

{[%evp 57,94,-81,-70,-99,-67,-74,-80,-73,-76,-72,-69,-179,-185,-181,-133,-172,-184,-191,-146,-183,-148,-138,-125,-127,-138,-412,-426,-400,-414,-831,-831,-639,-566,-714,-707,-661,-632,-1614,-1395]} 1. d4 {[%emt 0:04:03]} Nf6 {[%emt 0:00:07]} 2. Bg5 {[%emt 0:00:08]} d5 {[%emt 0:01:21]} 3. e3 {[%emt 0:00:18]} c6 {[%emt 0:02:49]} 4. Bxf6 {[%emt 0:04:32]} exf6 {[%emt 0:01:08]} 5. g3 {[%emt 0:00:02]} Bd6 {[%emt 0:03:51]} 6. Nd2 {[%emt 0:00:48]} Nd7 {[%emt 0:03:16]} 7. Bg2 {[%emt 0:00:27]} f5 {[%emt 0:02:00]} 8. Ne2 {[%emt 0:00:09]} Nf6 {[%emt 0:03:55]} 9. c4 {[%emt 0:05:57]} dxc4 {[%emt 0:04:13]} 10. Nxc4 {[%emt 0:00:12]} Bc7 {[%emt 0:04:37]} 11. Nc3 {[%emt 0:02:16]} Be6 {[%emt 0:04:05]} 12. Qe2 {[%emt 1:17:38]} Qe7 {[%emt 0:01:17]} 13. O-O {[%emt 0:00:00]} Qb4 {[%emt 0:07:15]} 14. Nd2 {[%emt 0:00:00]} O-O {[%emt 0:07:31]} 15. Rfc1 {[%emt 0:00:00]} a5 {[%emt 0:03:16]} 16. a3 {[%emt 0:00:00]} Qe7 {[%emt 0:00:58]} 17. Rc2 {[%emt 0:00:00]} Rfd8 {[%emt 0:05:48]} 18. Rac1 {[%emt 0:00:00]} a4 {[%emt 0:03:38]} 19. Nb5 {[%emt 0:00:00]} Bb8 {[%emt 0:01:07]} 20. Nc3 {[%emt 0:00:00]} g6 {[%emt 0:04:46]} 21. Re1 {[%emt 0:00:00]} Kg7 {[%emt 0:04:40]} 22. Rcc1 {[%emt 0:00:00]} Bc7 {[%emt 0:01:31]} 23. Qd1 {[%emt 0:00:00]} Ba5 {[%emt 0:01:59]} 24. Re2 {[%emt 0:00:00]} Bxc3 {[%emt 0:02:38]} 25. Rxc3 {[%emt 0:00:00]} Ra5 {[%emt 0:03:55]} 26. Nc4 {[%emt 0:00:00]} Ra6 {[%emt 0:00:32]} 27. Ne5 {[%emt 0:00:00]} Ne4 {[%emt 0:02:16]} 28. Rc1 {[%emt 0:00:00]} c5 {[%emt 0:02:48]} 29. f3 {[%emt 0:00:00]} (29. Bxe4 fxe4 30. Qe1 f6 $17) (29. Qe1 $11) 29... Nf6 {[%emt 0:00:20]} (29... Bb3 $6 30. Qf1 cxd4 31. exd4 Rxd4 32. fxe4 $11) (29... cxd4 {with more complications.} 30. fxe4 d3 31. Nxd3 fxe4 32. Bxe4 Bg4) 30. Rd2 {[%emt 0:00:00]} Bb3 {[%emt 0:01:40]} 31. Qe1 {[%emt 0:00:00]} cxd4 {[%emt 0:00:43]} 32. exd4 {[%emt 0:00:00]} Nd5 {[%emt 0:01:55]} 33. Re2 {[%emt 0:00:00]} Re6 {[%emt 0:00:41]} 34. Bf1 {[%emt 0:00:00] [#]} ({White should play} 34. f4 $15) 34... Re8 $1 $19 {[%emt 0:01:53]} 35. Kf2 {[%emt 0:11:30]} h5 {[%emt 0:04:47]} ({Weaker is} 35... f6 36. Nd3 $11) (35... Qg5 $19 {aiming for ...Qh6.} 36. Qd2 f4) 36. Qd2 {[%emt 0:00:00] [#]} h4 $1 {[%emt 0:00:41]} (36... f6 37. Nd3 $11) 37. Nd3 {[%emt 0:00:00]} Rxe2+ {[%emt 0:00:45]} 38. Qxe2 {[%emt 0:00:00]} Qd8 {[%emt 0:00:47]} ({Worse is} 38... hxg3+ 39. hxg3 Ne3 40. Qd2 $17) 39. Qd2 {[%emt 0:00:00]} hxg3+ {[%emt 0:00:41]} 40. hxg3 {[%emt 0:00:00]} Qf6 {[%emt 0:02:10]} 41. Nc5 $2 {[%emt 0:00:00][%mdl 8192]} (41. Nf4 $17) 41... f4 $19 {[%emt 0:02:35]} 42. Ne4 {[%emt 0:00:03]} Qe7 {[%emt 0:00:31]} ({Avoid the trap} 42... fxg3+ $2 43. Kxg3 Qd8 44. Bg2 $19) 43. Bb5 {[%emt 0:03:04]} (43. Kg1 $142 fxg3 44. Nxg3) 43... Rh8 $19 {[%emt 0:00:42]} 44. Kg1 {[%emt 0:00:49]} fxg3 {[%emt 0:01:26]} 45. Nxg3 {[%emt 0:00:24]} Qh4 {[%emt 0:00:44]} 46. Qf2 {[%emt 0:00:08]} Qg5 {[%emt 0:00:50]} 47. Rc5 {[%emt 0:01:01]} Rh3 {[%emt 0:00:19]} 0-1

[Event "3rd Gujarat GM Open 2022"]
[Site "Ahmedabad"]
[Date "2022.04.06"]
[Round "9.6"]
[White "Mirzoev, Azer"]
[Black "Laxman, R.R."]
[Result "1/2-1/2"]
[ECO "D38"]
[WhiteElo "2468"]
[BlackElo "2429"]
[Annotator "TA"]
[PlyCount "142"]
[EventDate "2022.03.31"]
[EventType "swiss"]
[EventCountry "IND"]
[SourceTitle "playchess.com"]
[Source "ChessBase"]
[SourceQuality "1"]
[TimeControl "5400+30"]

{[%evp 110,142,230,235,283,243,481,440,291,38,129,30,91,91,91,91,91,0,0,0,0,0,0,0,0,0,0,0,0,0,0,0,0,0,0]} 1. d4 {[%emt 0:01:44]} Nf6 {[%emt 0:00:06]} 2. Nf3 {[%emt 0:00:11]} e6 {[%emt 0:00:06]} 3. c4 {[%emt 0:00:05]} d5 {[%emt 0:00:34]} 4. Nc3 {[%emt 0:00:12]} Bb4 {[%emt 0:00:27]} 5. Qa4+ {[%emt 0:00:12]} Nc6 {[%emt 0:00:09]} 6. a3 {[%emt 0:00:03]} Bxc3+ {[%emt 0:00:19]} 7. bxc3 {[%emt 0:00:05]} Bd7 {[%emt 0:00:15]} 8. cxd5 {[%emt 0:00:20]} exd5 {[%emt 0:00:28]} 9. Bg5 {[%emt 0:00:10]} O-O {[%emt 0:00:56]} 10. e3 {[%emt 0:01:39]} h6 {[%emt 0:01:10]} 11. Bh4 {[%emt 0:03:41]} Re8 {[%emt 0:13:43]} 12. Qc2 {[%emt 0:00:41]} g5 {[%emt 0:00:22]} 13. Bg3 {[%emt 0:00:07]} Ne4 {[%emt 0:00:14]} 14. Nd2 {[%emt 0:05:38]} Bf5 {[%emt 0:03:20]} 15. Bd3 {[%emt 0:03:48]} Na5 {[%emt 0:00:50]} 16. Nxe4 {[%emt 0:06:07]} Bxe4 {[%emt 0:00:09]} 17. O-O {[%emt 0:00:12]} Nc4 {[%emt 0:01:03]} 18. Rfe1 {[%emt 0:00:44]} c6 {[%emt 0:03:02]} 19. f3 {[%emt 0:00:56]} Bxd3 {[%emt 0:00:04]} 20. Qxd3 {[%emt 0:00:03]} Qf6 {[%emt 0:01:06]} 21. a4 {[%emt 0:07:51]} b6 {[%emt 0:00:23]} 22. Ra2 {[%emt 0:02:21]} Re6 {[%emt 0:00:18]} 23. e4 {[%emt 0:08:40]} Qg6 {[%emt 0:00:45]} 24. Rae2 {[%emt 0:02:14]} Rae8 {[%emt 0:00:50]} 25. h3 {[%emt 0:00:34]} Kg7 {[%emt 0:03:58]} 26. Qc2 {[%emt 0:01:37]} f6 {[%emt 0:00:47]} 27. Qa2 {[%emt 0:03:34]} f5 {[%emt 0:04:52]} 28. exd5 {[%emt 0:24:20]} cxd5 {[%emt 0:00:15]} 29. Rxe6 {[%emt 0:00:14]} Rxe6 {[%emt 0:00:04]} 30. Be5+ {[%emt 0:00:06]} Kh7 {[%emt 0:00:26]} 31. Qb1 {[%emt 0:06:35]} a6 {[%emt 0:00:49]} 32. f4 {[%emt 0:03:12]} gxf4 {[%emt 0:01:13]} 33. Bxf4 {[%emt 0:01:16]} Re4 {[%emt 0:00:03]} 34. Rf1 {[%emt 0:03:56]} Qe6 {[%emt 0:01:46]} 35. Kh2 {[%emt 0:02:50]} Re2 {[%emt 0:15:50]} 36. Qd3 {[%emt 0:00:54]} Qe4 {[%emt 0:01:04]} 37. Qg3 {[%emt 0:00:27]} Qe6 {[%emt 0:00:22]} 38. Bc1 {[%emt 0:03:16]} Nd6 {[%emt 0:04:00]} 39. Qf4 {[%emt 0:03:29]} Qg6 {[%emt 0:02:03]} 40. Qf3 {[%emt 0:00:10]} Qe6 {[%emt 0:00:08]} 41. Qh5 {[%emt 0:00:39]} Ra2 {[%emt 0:02:24]} 42. Bf4 {[%emt 0:01:26]} Ne4 {[%emt 0:02:06]} 43. Rb1 {[%emt 0:02:58]} Kg8 {[%emt 0:07:31]} 44. Be5 {[%emt 0:00:46]} Ng5 {[%emt 0:00:57]} 45. Rf1 {[%emt 0:02:05]} Kh7 {[%emt 0:02:03]} 46. h4 {[%emt 0:00:23]} Qf7 {[%emt 0:00:04]} 47. Qxf7+ {[%emt 0:00:44]} Nxf7 {[%emt 0:00:03]} 48. Rxf5 {[%emt 0:00:04]} Nxe5 {[%emt 0:00:05]} 49. Rxe5 {[%emt 0:00:13]} Rxa4 {[%emt 0:00:04]} 50. Rxd5 {[%emt 0:00:14]} b5 {[%emt 0:00:37]} 51. Rd7+ {[%emt 0:00:21]} Kg6 {[%emt 0:00:09]} 52. Rd6+ {[%emt 0:00:03]} Kg7 {[%emt 0:00:04]} 53. Kg3 {[%emt 0:00:44]} Ra3 {[%emt 0:00:54]} 54. Kf4 {[%emt 0:00:05]} Rxc3 {[%emt 0:00:21]} 55. Rxa6 {[%emt 0:00:02]} Rd3 {[%emt 0:00:12]} 56. Ke5 $1 {[%emt 0:00:42]} Re3+ {[%emt 0:00:37] [#]} 57. Kf5 $1 {[%emt 0:00:09]} Rg3 $2 {[%emt 0:00:20]} (57... Rd3 58. Rg6+ Kh7) 58. Ra7+ {[%emt 0:00:29]} Kf8 {[%emt 0:00:07]} 59. Ra2 $2 {[%emt 0:00:21]} ({White should try} 59. Rb7 $18) 59... Ke7 {[%emt 0:01:48]} (59... b4 $14) 60. Ke5 {[%emt 0:01:03]} (60. Rb2 $16) 60... b4 {[%emt 0:00:07]} (60... Kd7 $1 $11 {keeps the balance.}) 61. Ra7+ $16 {[%emt 0:00:29]} Kd8 {[%emt 0:00:48]} 62. Rb7 {[%emt 0:00:28]} b3 {[%emt 0:00:11] [#]} 63. d5 {[%emt 0:00:20]} ({White should play} 63. Kf4 $1 $16 {[%cal Rf4g3]} Rd3 64. Ke4) 63... Kc8 $11 {[%emt 0:00:16]} 64. Rb5 {[%emt 0:02:29]} Kd7 {[%emt 0:00:11]} 65. Kf4 {[%emt 0:00:24]} Rxg2 {[%emt 0:00:09]} 66. Rxb3 {[%emt 0:00:15]} h5 $1 {[%emt 0:00:05]} 67. Rg3 {[%emt 0:01:04]} Rxg3 {[%emt 0:00:22]} 68. Kxg3 {[%emt 0:00:02]} Kd6 {[%emt 0:00:05]} 69. Kf4 {[%emt 0:00:04]} Kxd5 {[%emt 0:00:05]} 70. Kg5 {[%emt 0:00:02]} Ke6 {[%emt 0:00:05]} 71. Kxh5 {[%emt 0:00:03]} Kf7 {[%emt 0:00:05]} 1/2-1/2

[Event "3rd Gujarat GM Open 2022"]
[Site "Ahmedabad"]
[Date "2022.04.06"]
[Round "9.7"]
[White "Delgado Ramirez, Neuris"]
[Black "Ritviz, Parab"]
[Result "1-0"]
[ECO "C99"]
[WhiteElo "2615"]
[BlackElo "2349"]
[Annotator "TA"]
[PlyCount "83"]
[EventDate "2022.03.31"]
[EventType "swiss"]
[EventCountry "IND"]
[SourceTitle "playchess.com"]
[Source "ChessBase"]
[SourceQuality "1"]
[TimeControl "5400+30"]

{[%evp 44,83,170,167,157,156,138,47,79,77,74,76,54,64,63,76,79,82,190,193,183,195,227,227,222,100,124,120,201,109,213,208,173,164,362,256,446,446,733,739,1521,1520]} 1. e4 {[%emt 0:09:10]} e5 {[%emt 0:00:27]} 2. Nf3 {[%emt 0:00:06]} Nc6 {[%emt 0:00:06]} 3. Bb5 {[%emt 0:00:06]} a6 {[%emt 0:00:06]} 4. Ba4 {[%emt 0:00:04]} Nf6 {[%emt 0:00:08]} 5. O-O {[%emt 0:00:08]} Be7 {[%emt 0:00:06]} 6. Re1 {[%emt 0:00:08]} b5 {[%emt 0:00:06]} 7. Bb3 {[%emt 0:00:07]} d6 {[%emt 0:00:07]} 8. c3 {[%emt 0:00:09]} O-O {[%emt 0:00:07]} 9. h3 {[%emt 0:00:06]} Na5 {[%emt 0:00:26]} 10. Bc2 {[%emt 0:00:06]} c5 {[%emt 0:00:05]} 11. d4 {[%emt 0:00:07]} Qc7 {[%emt 0:00:06]} 12. Nbd2 {[%emt 0:00:08]} cxd4 {[%emt 0:01:06]} 13. cxd4 {[%emt 0:00:08]} Nc6 {[%emt 0:00:07]} 14. a3 {[%emt 0:03:08]} exd4 {[%emt 0:17:25]} 15. Nb3 {[%emt 0:00:16]} d5 {[%emt 0:17:56]} 16. e5 {[%emt 0:05:25]} Ne4 {[%emt 0:02:58]} 17. Bf4 {[%emt 0:01:40]} Bb7 {[%emt 0:20:08]} 18. Rc1 {[%emt 0:02:49]} Qb6 {[%emt 0:05:12]} 19. Nfxd4 {[%emt 0:01:42]} Rfd8 {[%emt 0:10:45]} 20. Be3 {[%emt 0:09:35]} Nxe5 {[%emt 0:01:26]} 21. Nf5 {[%emt 0:00:17]} Qf6 {[%emt 0:01:36]} 22. Nxe7+ {[%emt 0:00:24]} Qxe7 {[%emt 0:00:04]} 23. f3 {[%emt 0:00:18]} Ng5 {[%emt 0:02:09]} 24. Nd4 $1 {[%emt 0:09:20]} Ne6 {[%emt 0:03:52]} 25. Bf2 {[%emt 0:02:49]} ({Better is} 25. Nxe6 $1 $16 fxe6 26. Bb6) 25... Nc6 {[%emt 0:02:21]} 26. Qd3 {[%emt 0:07:28]} g6 {[%emt 0:00:23]} 27. Nxe6 $1 {[%emt 0:02:57]} fxe6 {[%emt 0:00:03]} 28. b4 {[%emt 0:01:37]} Qf6 {[%emt 0:06:32]} 29. Bb3 {[%emt 0:01:22]} Rac8 {[%emt 0:00:04]} 30. Qe3 {[%emt 0:02:10]} e5 {[%emt 0:05:41]} (30... Re8 $16 {keeps fighting.}) 31. Qb6 $18 {[%emt 0:01:58]} Qf7 {[%emt 0:00:50]} 32. Rc5 {[%emt 0:07:58]} Nd4 {[%emt 0:03:19]} 33. Bxd4 {[%emt 0:00:44]} exd4 {[%emt 0:00:02]} 34. Rxc8 {[%emt 0:00:08]} (34. Re5 $1 $18) 34... Rxc8 $16 {[%emt 0:00:03]} 35. Qxd4 {[%emt 0:00:23]} Rc7 {[%emt 0:00:56] [#]} (35... Re8 $16 36. Rxe8+ Qxe8) 36. f4 {[%emt 0:01:46]} (36. Re5 $1 $18 {[%cal Re5d5]} Rd7 37. h4) 36... Rd7 {[%emt 0:00:38] [#]} (36... Re7 $16 {might work better.} 37. Rxe7 Qxe7) 37. Re5 $1 $18 {[%emt 0:00:16]} Rd6 {[%emt 0:00:46]} 38. Kh2 {[%emt 0:01:43]} Rd7 $2 {[%emt 0:00:39]} (38... Kf8 39. Kg1 Qd7) 39. f5 {[%emt 0:02:46]} gxf5 $2 {[%emt 0:00:21]} (39... Rd6 40. Qe3 Bc6) 40. Bc2 $18 {[%emt 0:01:28]} Qg7 {[%emt 0:00:43]} (40... Rd6 $142 41. Qe3 (41. Rxf5 Qc7 $18) 41... Kf8) 41. Qf4 $18 {[%emt 0:00:59]} d4 {[%emt 0:00:19]} 42. Bb3+ {[%emt 0:00:08]} 1-0